fUST/lending_fUST_20240902
["ID","MTS","AMOUNT","RATE_DAILY","PERIOD"]
[336845720,1725208528524,-500.0,0.00025752,2]
[336845721,1725208528547,-151.0,0.00025753,7]
[336845722,1725208528571,-151.0,0.00025753,7]
[336845723,1725208528595,-500.0,0.00025753,2]
[336845724,1725208528618,-200.0,0.00025753,2]
[336845725,1725208528641,-283.08670458,0.00025753,2]
[336845726,1725208528665,-1399.19,0.00025753,2]
[336845727,1725208528689,-500.0,0.00025753,2]
[336845728,1725208528714,-500.0,0.00025753,2]
[336845729,1725208528736,-500.0,0.00025753,2]
[336845730,1725208528759,-250.0,0.00025753,7]
[336845731,1725208528784,-500.0,0.00025753,2]
[336845732,1725208528807,-250.0,0.00025753,7]
[336845733,1725208528831,-508.02337027,0.00025753,2]
[336845734,1725208528855,-500.0,0.00025753,2]
[336845735,1725208528878,-1035.37,0.00025753,2]
[336845736,1725208528901,-297.53935409,0.00025753,2]
[336845737,1725208528924,-500.0,0.00025753,2]
[336845738,1725208528949,-500.0,0.00025753,2]
[336845739,1725208528972,-500.0,0.00025753,2]
[336845740,1725208528997,-500.0,0.00025753,2]
[336845741,1725208529021,-500.0,0.00025753,2]
[336845742,1725208529072,-500.0,0.00025753,2]
[336845743,1725208529097,-774.17,0.00025753,2]
[336845744,1725208529121,-743.54,0.00025753,2]
[336845745,1725208529145,-500.0,0.00025753,2]
[336845746,1725208529169,-675.09,0.00025753,2]
[336845747,1725208529192,-500.0,0.00025753,2]
[336845748,1725208529216,-500.0,0.00025753,2]
[336845749,1725208529239,-659.95,0.00025753,2]
[336845750,1725208529263,-713.87,0.00025753,2]
[336845751,1725208529287,-706.75,0.00025753,2]
[336845752,1725208529311,-500.0,0.00025753,2]
[336845753,1725208529334,-577.91,0.00025753,2]
[336845754,1725208529359,-500.0,0.00025753,2]
[336845755,1725208529385,-1264.63,0.00025753,2]
[336845756,1725208529409,-500.0,0.00025753,2]
[336845757,1725208529433,-2037.44,0.00025753,2]
[336845758,1725208529457,-500.0,0.00025753,2]
[336845759,1725208529481,-1592.91,0.00025753,2]
[336845760,1725208529504,-2244.05,0.00025753,2]
[336845761,1725208529527,-614.5644295,0.00025753,2]
[336845762,1725208529551,-530.88,0.00025753,2]
[336845763,1725208529575,-500.0,0.00025753,2]
[336845764,1725208529599,-500.0,0.00025753,2]
[336845765,1725208529622,-500.0,0.00025753,2]
[336845766,1725208529646,-500.0,0.00025753,2]
[336845767,1725208529669,-500.0,0.00025753,2]
[336845768,1725208529694,-500.0,0.00025753,2]
[336845769,1725208529722,-517.37,0.00025753,2]
[336845770,1725208529746,-1559.63,0.00025753,2]
[336845771,1725208529771,-500.0,0.00025753,2]
[336845772,1725208529795,-500.0,0.00025753,2]
[336845773,1725208529819,-500.0,0.00025753,2]
[336845774,1725208529843,-307.75428315,0.00025753,2]
[336845775,1725208529867,-540.89,0.00025753,2]
[336845776,1725208529891,-616.42,0.00025753,2]
[336845777,1725208529915,-1049.07,0.00025753,2]
[336845778,1725208529938,-500.0,0.00025753,2]
[336845779,1725208529963,-500.0,0.00025753,2]
[336845780,1725208529987,-349.146511,0.00025753,7]
[336845781,1725208530010,-737.46,0.00025753,2]
[336845782,1725208530035,-602.39,0.00025753,2]
[336845783,1725208530058,-349.146511,0.00025753,7]
[336845784,1725208530082,-828.6,0.00025753,2]
[336845785,1725208530104,-1094.09,0.00025753,2]
[336845786,1725208530132,-500.0,0.00025753,2]
[336845787,1725208530157,-500.0,0.00025753,2]
[336845788,1725208530181,-500.0,0.00025753,2]
[336845789,1725208530207,-1436.31,0.00025753,2]
[336845790,1725208530231,-500.0,0.00025753,2]
[336845791,1725208530255,-914.04,0.00025753,2]
[336845792,1725208530280,-974.0,0.00025753,2]
[336845793,1725208530309,-2241.31,0.00025753,2]
[336845794,1725208530333,-500.0,0.00025753,2]
[336845795,1725208530357,-500.0,0.00025753,2]
[336845796,1725208530384,-500.0,0.00025753,2]
[336845797,1725208530407,-571.88,0.00025753,2]
[336845798,1725208530430,-500.0,0.00025753,2]
[336845799,1725208530456,-500.0,0.00025753,2]
[336845800,1725208530478,-500.0,0.00025753,2]
[336845801,1725208530501,-1141.93,0.00025753,2]
[336845802,1725208530525,-499.442162,0.00025753,7]
[336845803,1725208530549,-564.06,0.00025753,2]
[336845804,1725208530572,-500.0,0.00025753,2]
[336845805,1725208530596,-499.442162,0.00025753,7]
[336845806,1725208530620,-509.27926709,0.00025753,2]
[336845807,1725208530644,-500.0,0.00025753,2]
[336845808,1725208530669,-1601.33,0.00025753,2]
[336845809,1725208530693,-500.0,0.00025753,2]
[336845810,1725208530718,-500.0,0.00025753,2]
[336845811,1725208530742,-749.01,0.00025753,2]
[336845812,1725208530767,-710.82,0.00025753,2]
[336845813,1725208530793,-500.0,0.00025753,2]
[336845814,1725208530815,-500.0,0.00025753,2]
[336845815,1725208530839,-1258.62,0.00025753,2]
[336845816,1725208530862,-2055.11,0.00025753,2]
[336845817,1725208530886,-799.77,0.00025753,2]
[336845818,1725208530909,-593.47,0.00025753,2]
[336845819,1725208530933,-958.67,0.00025753,2]
[336845820,1725208530964,-500.0,0.00025753,2]
[336845821,1725208530989,-500.0,0.00025753,2]
[336845822,1725208531015,-518.21,0.00025753,2]
[336845823,1725208531040,-500.0,0.00025753,2]
[336845824,1725208531066,-500.0,0.00025753,2]
[336845825,1725208531094,-689.45,0.00025753,2]
[336845826,1725208531121,-500.0,0.00025753,2]
[336845827,1725208531149,-500.0,0.00025753,2]
[336845828,1725208531175,-500.0,0.00025753,2]
[336845829,1725208531200,-500.0,0.00025753,2]
[336845830,1725208531228,-500.0,0.00025753,2]
[336845831,1725208531252,-500.0,0.00025753,2]
[336845832,1725208531279,-500.0,0.00025753,2]
[336845833,1725208531305,-500.0,0.00025753,2]
[336845834,1725208531332,-500.0,0.00025753,2]
[336845835,1725208531359,-500.0,0.00025753,2]
[336845836,1725208531385,-551.14,0.00025753,2]
[336845837,1725208531412,-500.0,0.00025753,2]
[336845838,1725208531435,-500.0,0.00025753,2]
[336845839,1725208531459,-500.0,0.00025753,2]
[336845840,1725208531484,-500.0,0.00025753,2]
[336845841,1725208531509,-203.99,0.00025753,2]
[336845842,1725208531533,-500.0,0.00025753,2]
[336845843,1725208531556,-500.0,0.00025753,2]
[336845844,1725208531580,-993.8,0.00025753,2]
[336845845,1725208531604,-824.95,0.00025753,2]
[336845846,1725208531628,-151.0,0.00025753,7]
[336845847,1725208531651,-500.0,0.00025753,2]
[336845848,1725208531675,-500.0,0.00025753,2]
[336845849,1725208531699,-500.0,0.00025753,2]
[336845850,1725208531724,-500.0,0.00025753,2]
[336845851,1725208531747,-569.86,0.00025753,2]
[336845852,1725208531771,-500.0,0.00025753,2]
[336845853,1725208531797,-2707.82,0.00025753,2]
[336845854,1725208531821,-2694.87,0.00025753,2]
[336845855,1725208531845,-500.0,0.00025753,2]
[336845856,1725208531870,-500.0,0.00025753,2]
[336845857,1725208531895,-500.0,0.00025753,2]
[336845858,1725208531919,-500.0,0.00025753,2]
[336845859,1725208531945,-12817.37,0.00025753,2]
[336845860,1725208531971,-500.0,0.00025753,2]
[336845861,1725208531995,-1985.04,0.00025753,2]
[336845862,1725208532021,-2836.5,0.00025753,2]
[336845863,1725208532047,-500.0,0.00025753,2]
[336845864,1725208532071,-500.0,0.00025753,2]
[336845865,1725208532096,-2201.24,0.00025753,2]
[336845866,1725208532120,-500.0,0.00025753,2]
[336845867,1725208532144,-500.0,0.00025753,2]
[336845868,1725208532168,-4445.91,0.00025753,2]
[336845869,1725208532192,-872.85,0.00025753,2]
[336845870,1725208532217,-564.24,0.00025753,2]
[336845871,1725208532242,-2251.65,0.00025753,2]
[336845872,1725208532266,-982.52,0.00025753,2]
[336845873,1725208532289,-510.49,0.00025753,2]
[336845874,1725208532318,-500.0,0.00025753,2]
[336845875,1725208532345,-3333.34,0.00025753,2]
[336845876,1725208532371,-532.25,0.00025753,2]
[336845877,1725208532398,-500.0,0.00025753,2]
[336845878,1725208532423,-793.81,0.00025753,2]
[336845879,1725208532449,-500.0,0.00025753,2]
[336845880,1725208532477,-500.0,0.00025753,2]
[336845881,1725208532502,-520.07,0.00025753,2]
[336845882,1725208532526,-1344.05,0.00025753,2]
[336845883,1725208532551,-788.39,0.00025753,2]
[336845884,1725208532576,-650.81,0.00025753,2]
[336845885,1725208532601,-2003.28,0.00025753,2]
[336845886,1725208532625,-1685.35,0.00025753,2]
[336845887,1725208532649,-518.29,0.00025753,2]
[336845888,1725208532675,-1902.09,0.00025753,2]
[336845889,1725208532701,-500.0,0.00025753,2]
[336845890,1725208532726,-500.0,0.00025753,2]
[336845891,1725208532752,-500.0,0.00025753,2]
[336845892,1725208532777,-500.0,0.00025753,2]
[336845893,1725208532803,-1976.48,0.00025753,2]
[336845894,1725208532828,-1359.91,0.00025753,2]
[336845895,1725208532854,-1808.54,0.00025753,2]
[336845896,1725208532879,-880.31,0.00025753,2]
[336845897,1725208532904,-500.0,0.00025753,2]
[336845898,1725208532929,-2213.92,0.00025753,2]
[336845899,1725208532954,-546.38,0.00025753,2]
[336845900,1725208532979,-3134.93,0.00025753,2]
[336845901,1725208533170,-919.7,0.00025753,2]
[336845902,1725208533196,-500.0,0.00025753,2]
[336845903,1725208533221,-500.0,0.00025753,2]
[336845904,1725208533246,-1758.51,0.00025753,2]
[336845905,1725208533270,-811.51,0.00025753,2]
[336845906,1725208533294,-204.4196225,0.00025753,2]
[336845907,1725208533322,-1405.42,0.00025753,2]
[336845908,1725208533353,-500.0,0.00025753,2]
[336845909,1725208533378,-867.6,0.00025753,2]
[336845910,1725208533403,-1494.95,0.00025753,2]
[336845911,1725208533427,-799.97,0.00025753,2]
[336845912,1725208533452,-718.17,0.00025753,2]
[336845913,1725208533479,-982.8,0.00025753,2]
[336845914,1725208533503,-500.0,0.00025753,2]
[336845915,1725208533529,-5754.37,0.00025753,2]
[336845916,1725208533555,-500.0,0.00025753,2]
[336845917,1725208533582,-10060.76,0.00025753,2]
[336845918,1725208533609,-662.39,0.00025753,2]
[336845919,1725208533640,-1977.52,0.00025753,2]
[336845920,1725208533668,-551.67,0.00025753,2]
[336845921,1725208533692,-2547.84,0.00025753,2]
[336845922,1725208533718,-683.21,0.00025753,2]
[336845923,1725208533742,-500.0,0.00025753,2]
[336845924,1725208533766,-500.0,0.00025753,2]
[336845925,1725208533790,-500.0,0.00025753,2]
[336845926,1725208533815,-1076.23,0.00025753,2]
[336845927,1725208533840,-1563.4,0.00025753,2]
[336845928,1725208533866,-604.36013376,0.00025753,2]
[336845929,1725208533892,-2136.59,0.00025753,2]
[336845930,1725208533916,-597.53,0.00025753,2]
[336845931,1725208533940,-1412.58,0.00025753,2]
[336845932,1725208533968,-500.0,0.00025753,2]
[336845933,1725208533992,-500.0,0.00025753,2]
[336845934,1725208534017,-500.0,0.00025753,2]
[336845935,1725208534041,-500.0,0.00025753,2]
[336845936,1725208534065,-937.31,0.00025753,2]
[336845937,1725208534090,-624.83,0.00025753,2]
[336845938,1725208534114,-679.44,0.00025753,2]
[336845939,1725208534139,-2321.06,0.00025753,2]
[336845940,1725208534165,-1642.54,0.00025753,2]
[336845941,1725208534191,-500.0,0.00025753,2]
[336845942,1725208534218,-500.0,0.00025753,2]
[336845943,1725208534243,-1615.73,0.00025753,2]
[336845944,1725208534268,-2223.21,0.00025753,2]
[336845945,1725208534292,-605.87,0.00025753,2]
[336845946,1725208534318,-500.0,0.00025753,2]
[336845947,1725208534343,-500.0,0.00025753,2]
[336845948,1725208534367,-505.27,0.00025753,2]
[336845949,1725208534392,-2541.93,0.00025753,2]
[336845950,1725208534417,-500.0,0.00025753,2]
[336845951,1725208534442,-500.0,0.00025753,2]
[336845952,1725208534469,-2393.85,0.00025753,2]
[336845953,1725208534494,-1003.61,0.00025753,2]
[336845954,1725208534519,-500.0,0.00025753,2]
[336845955,1725208534544,-3000.0,0.0002576,2]
[336845956,1725208534569,-3000.0,0.0002576,2]
[336845957,1725208534594,-3000.0,0.0002577,2]
[336845958,1725208534619,-3000.0,0.0002577,2]
[336845959,1725208534644,-799.668,0.00025772,2]
[336845960,1725208534670,-3000.0,0.0002578,2]
[336845961,1725208534694,-3000.0,0.0002578,2]
[336845962,1725208534718,-3000.0,0.0002579,2]
[336845963,1725208534742,-3000.0,0.0002579,2]
[336845964,1725208534765,-590.69481382,0.000258,2]
[336845965,1725208534788,-590.69481379,0.000258,2]
[336845966,1725208534812,-590.69481379,0.000258,2]
[336845967,1725208534836,-590.69481379,0.000258,2]
[336845968,1725208534860,-150.112233,0.000258,8]
[336845969,1725208534884,-150.112233,0.000258,8]
[336845970,1725208534907,-1739.64,0.000258,14]
[336845971,1725208534932,-3000.0,0.000258,2]
[336845972,1725208534958,-3000.0,0.000258,2]
[336845973,1725208534981,-2909.51,0.000258,14]
[336845974,1725208535005,-3000.0,0.0002581,2]
[336845975,1725208535029,-3000.0,0.0002581,2]
[336845976,1725208535054,-3000.0,0.0002582,2]
[336845977,1725208535078,-3000.0,0.0002582,2]
[336845978,1725208535102,-502.53144849,0.00025821,2]
[336845979,1725208535125,-3000.0,0.0002583,2]
[336845980,1725208535149,-3000.0,0.0002583,2]
[336845981,1725208535173,-3000.0,0.0002584,2]
[336845982,1725208535197,-3000.0,0.0002584,2]
[336845983,1725208535224,-349.146511,0.0002585,7]
[336845984,1725208535247,-349.146511,0.0002585,7]
[336845985,1725208535271,-499.442162,0.0002585,7]
[336845986,1725208535296,-499.442162,0.0002585,7]
[336845987,1725208535324,-3000.0,0.0002585,2]
[336845988,1725208535349,-3000.0,0.0002585,2]
[336845989,1725208535372,-231.70243,0.0002586,7]
[336845990,1725208535398,-3000.0,0.0002586,2]
[336845991,1725208535423,-3000.0,0.0002586,2]
[336845992,1725208535448,-3000.0,0.0002587,2]
[336845993,1725208535473,-3000.0,0.0002587,2]
[336845994,1725208535497,-3000.0,0.0002588,2]
[336845995,1725208535523,-3000.0,0.0002588,2]
[336845996,1725208535546,-3000.0,0.0002589,2]
[336845997,1725208535571,-3000.0,0.0002589,2]
[336845998,1725208535596,-154.0,0.0002589,2]
[336845999,1725208535622,-301.68804529,0.0002589,120]
[336846000,1725208535647,-150.112233,0.000259,5]
[336846001,1725208535673,-3000.0,0.000259,2]
[336846002,1725208535696,-3000.0,0.000259,2]
[336846003,1725208535722,-3000.0,0.0002591,2]
[336846004,1725208535746,-3000.0,0.0002591,2]
[336846005,1725208535770,-3000.0,0.0002592,2]
[336846006,1725208535794,-3000.0,0.0002592,2]
[336846007,1725208535817,-3000.0,0.0002593,2]
[336846008,1725208535841,-3000.0,0.0002593,2]
[336846009,1725208535866,-3000.0,0.0002594,2]
[336846010,1725208535891,-3000.0,0.0002594,2]
[336846011,1725208535917,-3000.0,0.0002595,2]
[336846012,1725208535943,-3000.0,0.0002595,2]
[336846013,1725208535975,-3000.0,0.0002596,2]
[336846014,1725208536000,-3000.0,0.0002596,2]
[336846015,1725208536024,-3000.0,0.0002597,2]
[336846016,1725208536048,-3000.0,0.0002597,2]
[336846017,1725208536073,-3000.0,0.0002598,2]
[336846018,1725208536097,-3000.0,0.0002598,2]
[336846019,1725208536120,-465.00041687,0.00025987,2]
[336846020,1725208536143,-151.0,0.0002599,7]
[336846021,1725208536167,-3000.0,0.0002599,2]
[336846022,1725208536192,-3000.0,0.0002599,2]
[336846023,1725208536218,-1000.5,0.00026,31]
[336846024,1725208536242,-1000.5,0.00026,31]
[336846025,1725208536265,-1011.5,0.00026,31]
[336846026,1725208536427,-523.47370696,0.00026,2]
[336846027,1725208536452,-1000.0,0.00026,26]
[336846028,1725208536479,-150.112233,0.00026,6]
[336846029,1725208536504,-3000.0,0.00026,2]
[336846030,1725208536529,-3000.0,0.00026,2]
[336846031,1725208536552,-4165.433403,0.0002601,2]
[336846032,1725208536577,-3000.0,0.0002601,2]
[336846033,1725208536601,-3000.0,0.0002602,2]
[336846034,1725208536625,-500.0,0.00026027,2]
[336846035,1725208536649,-248.38060256,0.00026027,2]
[336846036,1725208536673,-1399.19,0.00026027,2]
[336846037,1725208536696,-500.0,0.00026027,2]
[336846038,1725208536720,-500.0,0.00026027,2]
[336846039,1725208536744,-500.0,0.00026027,2]
[336846040,1725208536767,-250.0,0.00026027,7]
[336846041,1725208536791,-505.84829861,0.00026027,2]
[336846042,1725208536815,-250.0,0.00026027,7]
[336846043,1725208536839,-500.0,0.00026027,2]
[336846044,1725208536864,-1035.37,0.00026027,2]
[336846045,1725208536888,-500.0,0.00026027,2]
[336846046,1725208536912,-500.0,0.00026027,2]
[336846047,1725208536935,-500.0,0.00026027,2]
[336846048,1725208536965,-500.0,0.00026027,2]
[336846049,1725208536991,-500.0,0.00026027,2]
[336846050,1725208537016,-500.0,0.00026027,2]
[336846051,1725208537040,-774.17,0.00026027,2]
[336846052,1725208537064,-743.54,0.00026027,2]
[336846053,1725208537087,-500.0,0.00026027,2]
[336846054,1725208537112,-675.09,0.00026027,2]
[336846055,1725208537136,-500.0,0.00026027,2]
[336846056,1725208537161,-214.69726725,0.00026027,2]
[336846057,1725208537185,-659.95,0.00026027,2]
[336846058,1725208537210,-713.87,0.00026027,2]
[336846059,1725208537234,-706.75,0.00026027,2]
[336846060,1725208537258,-500.0,0.00026027,2]
[336846061,1725208537281,-577.91,0.00026027,2]
[336846062,1725208537310,-500.0,0.00026027,2]
[336846063,1725208537334,-1264.63,0.00026027,2]
[336846064,1725208537359,-424.06780542,0.00026027,2]
[336846065,1725208537384,-2037.44,0.00026027,2]
[336846066,1725208537407,-500.0,0.00026027,2]
[336846067,1725208537431,-1592.91,0.00026027,2]
[336846068,1725208537455,-2244.05,0.00026027,2]
[336846069,1725208537480,-530.88,0.00026027,2]
[336846070,1725208537504,-500.0,0.00026027,2]
[336846071,1725208537529,-500.0,0.00026027,2]
[336846072,1725208537553,-428.60783007,0.00026027,2]
[336846073,1725208537578,-500.0,0.00026027,2]
[336846074,1725208537603,-500.0,0.00026027,2]
[336846075,1725208537627,-500.0,0.00026027,2]
[336846076,1725208537651,-517.37,0.00026027,2]
[336846077,1725208537676,-1559.63,0.00026027,2]
[336846078,1725208537701,-500.0,0.00026027,2]
[336846079,1725208537725,-500.0,0.00026027,2]
[336846080,1725208537749,-500.0,0.00026027,2]
[336846081,1725208537772,-540.89,0.00026027,2]
[336846082,1725208537796,-616.42,0.00026027,2]
[336846083,1725208537820,-1049.07,0.00026027,2]
[336846084,1725208537845,-434.09901306,0.00026027,2]
[336846085,1725208537869,-500.0,0.00026027,2]
[336846086,1725208537894,-349.146511,0.00026027,7]
[336846087,1725208537919,-737.46,0.00026027,2]
[336846088,1725208537942,-602.39,0.00026027,2]
[336846089,1725208537968,-349.146511,0.00026027,7]
[336846090,1725208537992,-828.6,0.00026027,2]
[336846091,1725208538016,-1094.09,0.00026027,2]
[336846092,1725208538042,-500.0,0.00026027,2]
[336846093,1725208538066,-500.0,0.00026027,2]
[336846094,1725208538090,-500.0,0.00026027,2]
[336846095,1725208538115,-1436.31,0.00026027,2]
[336846096,1725208538139,-500.0,0.00026027,2]
[336846097,1725208538164,-914.04,0.00026027,2]
[336846098,1725208538188,-974.0,0.00026027,2]
[336846099,1725208538213,-2241.31,0.00026027,2]
[336846100,1725208538237,-500.0,0.00026027,2]
[336846101,1725208538261,-500.0,0.00026027,2]
[336846102,1725208538285,-500.0,0.00026027,2]
[336846103,1725208538318,-571.88,0.00026027,2]
[336846104,1725208538343,-500.0,0.00026027,2]
[336846105,1725208538369,-500.0,0.00026027,2]
[336846106,1725208538393,-500.0,0.00026027,2]
[336846107,1725208538420,-1141.93,0.00026027,2]
[336846108,1725208538445,-564.06,0.00026027,2]
[336846109,1725208538471,-499.442162,0.00026027,7]
[336846110,1725208538495,-500.0,0.00026027,2]
[336846111,1725208538520,-499.442162,0.00026027,7]
[336846112,1725208538544,-500.0,0.00026027,2]
[336846113,1725208538568,-1601.33,0.00026027,2]
[336846114,1725208538592,-500.0,0.00026027,2]
[336846115,1725208538616,-500.0,0.00026027,2]
[336846116,1725208538641,-749.01,0.00026027,2]
[336846117,1725208538665,-710.82,0.00026027,2]
[336846118,1725208538689,-500.0,0.00026027,2]
[336846119,1725208538711,-500.0,0.00026027,2]
[336846120,1725208538734,-1258.62,0.00026027,2]
[336846121,1725208538758,-2055.11,0.00026027,2]
[336846122,1725208538781,-799.77,0.00026027,2]
[336846123,1725208538805,-593.47,0.00026027,2]
[336846124,1725208538829,-958.67,0.00026027,2]
[336846125,1725208538854,-500.0,0.00026027,2]
[336846126,1725208538878,-500.0,0.00026027,2]
[336846127,1725208538903,-518.21,0.00026027,2]
[336846128,1725208538928,-500.0,0.00026027,2]
[336846129,1725208538952,-500.0,0.00026027,2]
[336846130,1725208538979,-689.45,0.00026027,2]
[336846131,1725208539005,-500.0,0.00026027,2]
[336846132,1725208539030,-500.0,0.00026027,2]
[336846133,1725208539055,-500.0,0.00026027,2]
[336846134,1725208539079,-500.0,0.00026027,2]
[336846135,1725208539105,-500.0,0.00026027,2]
[336846136,1725208539132,-500.0,0.00026027,2]
[336846137,1725208539156,-500.0,0.00026027,2]
[336846138,1725208539181,-500.0,0.00026027,2]
[336846139,1725208539206,-500.0,0.00026027,2]
[336846140,1725208539229,-500.0,0.00026027,2]
[336846141,1725208539252,-551.14,0.00026027,2]
[336846142,1725208539276,-500.0,0.00026027,2]
[336846143,1725208539299,-500.0,0.00026027,2]
[336846144,1725208539327,-500.0,0.00026027,2]
[336846145,1725208539353,-500.0,0.00026027,2]
[336846146,1725208539377,-500.0,0.00026027,2]
[336846147,1725208539405,-500.0,0.00026027,2]
[336846148,1725208539428,-993.8,0.00026027,2]
[336846149,1725208539454,-824.95,0.00026027,2]
[336846150,1725208539480,-151.0,0.00026027,7]
[336846151,1725208539504,-500.0,0.00026027,2]
[336846152,1725208539529,-500.0,0.00026027,2]
[336846153,1725208539552,-500.0,0.00026027,2]
[336846154,1725208539576,-500.0,0.00026027,2]
[336846155,1725208539599,-569.86,0.00026027,2]
[336846156,1725208539774,-500.0,0.00026027,2]
[336846157,1725208539801,-2707.82,0.00026027,2]
[336846158,1725208539824,-2694.87,0.00026027,2]
[336846159,1725208539848,-500.0,0.00026027,2]
[336846160,1725208539873,-553.19181531,0.00026027,2]
[336846161,1725208539898,-500.0,0.00026027,2]
[336846162,1725208539922,-500.0,0.00026027,2]
[336846163,1725208539946,-12817.37,0.00026027,2]
[336846164,1725208539971,-1985.04,0.00026027,2]
[336846165,1725208539995,-512.17694907,0.00026027,2]
[336846166,1725208540021,-2836.5,0.00026027,2]
[336846167,1725208540045,-500.0,0.00026027,2]
[336846168,1725208540069,-500.0,0.00026027,2]
[336846169,1725208540093,-2201.24,0.00026027,2]
[336846170,1725208540117,-500.0,0.00026027,2]
[336846171,1725208540142,-500.0,0.00026027,2]
[336846172,1725208540166,-4445.91,0.00026027,2]
[336846173,1725208540190,-872.85,0.00026027,2]
[336846174,1725208540221,-564.24,0.00026027,2]
[336846175,1725208540247,-2251.65,0.00026027,2]
[336846176,1725208540271,-982.52,0.00026027,2]
[336846177,1725208540295,-510.49,0.00026027,2]
[336846178,1725208540323,-500.0,0.00026027,2]
[336846179,1725208540349,-3333.34,0.00026027,2]
[336846180,1725208540374,-500.0,0.00026027,2]
[336846181,1725208540401,-793.81,0.00026027,2]
[336846182,1725208540426,-532.25,0.00026027,2]
[336846183,1725208540450,-500.0,0.00026027,2]
[336846184,1725208540476,-500.0,0.00026027,2]
[336846185,1725208540501,-520.07,0.00026027,2]
[336846186,1725208540525,-788.39,0.00026027,2]
[336846187,1725208540550,-1344.05,0.00026027,2]
[336846188,1725208540574,-650.81,0.00026027,2]
[336846189,1725208540599,-2003.28,0.00026027,2]
[336846190,1725208540625,-1685.35,0.00026027,2]
[336846191,1725208540651,-1902.09,0.00026027,2]
[336846192,1725208540675,-518.29,0.00026027,2]
[336846193,1725208540699,-500.0,0.00026027,2]
[336846194,1725208540733,-500.0,0.00026027,2]
[336846195,1725208540757,-500.0,0.00026027,2]
[336846196,1725208540781,-500.0,0.00026027,2]
[336846197,1725208540805,-1976.48,0.00026027,2]
[336846198,1725208540831,-1359.91,0.00026027,2]
[336846199,1725208540856,-1808.54,0.00026027,2]
[336846200,1725208540880,-880.31,0.00026027,2]
[336846201,1725208540905,-500.0,0.00026027,2]
[336846202,1725208540929,-2213.92,0.00026027,2]
[336846203,1725208540953,-546.38,0.00026027,2]
[336846204,1725208540982,-3134.93,0.00026027,2]
[336846205,1725208541007,-919.7,0.00026027,2]
[336846206,1725208541031,-500.0,0.00026027,2]
[336846207,1725208541055,-500.0,0.00026027,2]
[336846208,1725208541079,-1758.51,0.00026027,2]
[336846209,1725208541102,-811.51,0.00026027,2]
[336846210,1725208541125,-1405.42,0.00026027,2]
[336846211,1725208541149,-500.0,0.00026027,2]
[336846212,1725208541176,-867.6,0.00026027,2]
[336846213,1725208541200,-1494.95,0.00026027,2]
[336846214,1725208541224,-799.97,0.00026027,2]
[336846215,1725208541247,-718.17,0.00026027,2]
[336846216,1725208541270,-982.8,0.00026027,2]
[336846217,1725208541295,-500.0,0.00026027,2]
[336846218,1725208541323,-5754.37,0.00026027,2]
[336846219,1725208541347,-500.0,0.00026027,2]